[Event "Hungarian Rapid-ch 2022"]
[Site "Ajka"]
[Date "2022.07.16"]
[Round "6.19"]
[White "Hoang, Thanh Trang"]
[Black "Miszler, Levente"]
[Result "1-0"]
[ECO "A40"]
[WhiteElo "2376"]
[BlackElo "2243"]
[Annotator "ChessBase"]
[PlyCount "115"]
[EventDate "2022.07.15"]
[EventType "swiss"]
[EventCountry "HUN"]
[SourceTitle "playchess.com"]
[Source "ChessBase"]
[SourceQuality "1"]
[TimeControl "900+10"]

1. d4 {[%emt 0:00:13]} e6 {[%emt 0:00:13]} 2. Nf3 {[%emt 0:00:14]} d5 {[%emt 0:00:04]} 3. Bf4 {[%emt 0:00:44]} Nf6 {[%emt 0:00:05]} 4. e3 {[%emt 0:00:26]} c5 {[%emt 0:00:04]} 5. Nbd2 {[%emt 0:01:14]} Nc6 {[%emt 0:00:05]} 6. c3 {[%emt 0:00:07]} cxd4 {[%emt 0:00:10]} 7. exd4 {[%emt 0:00:15]} Nh5 {[%emt 0:00:04]} 8. Be3 {[%emt 0:01:06]} g6 {[%emt 0:00:28]} 9. Bd3 {[%emt 0:00:23]} Bd6 {[%emt 0:00:18]} 10. O-O {[%emt 0:00:24]} f5 {[%emt 0:00:42]} 11. Bh6 {[%emt 0:01:55]} Qf6 {[%emt 0:03:18]} 12. Re1 {[%emt 0:00:28]} Bf4 {[%emt 0:01:39]} 13. Bxf4 {[%emt 0:00:28]} Nxf4 {[%emt 0:00:01]} 14. Bf1 {[%emt 0:00:53]} g5 {[%emt 0:00:50]} 15. Ne5 {[%emt 0:01:26]} Nxe5 {[%emt 0:00:30]} 16. dxe5 {[%emt 0:00:53]} Qf7 {[%emt 0:00:05]} 17. c4 {[%emt 0:00:17]} O-O {[%emt 0:00:59]} 18. g3 {[%emt 0:00:18]} Ng6 {[%emt 0:00:05]} 19. cxd5 {[%emt 0:00:04]} exd5 {[%emt 0:00:02]} 20. Nf3 {[%emt 0:00:32]} h6 {[%emt 0:02:06]} 21. Bg2 {[%emt 0:01:49]} Be6 {[%emt 0:01:04]} 22. Nd4 {[%emt 0:00:08]} Rad8 {[%emt 0:00:03]} 23. Qd2 {[%emt 0:00:29]} f4 {[%emt 0:01:01]} 24. Rad1 {[%emt 0:00:21]} Ne7 {[%emt 0:00:03]} 25. Rc1 {[%emt 0:00:46]} Nf5 {[%emt 0:00:36]} 26. Nxe6 {[%emt 0:00:28]} Qxe6 {[%emt 0:00:02]} 27. Rc7 {[%emt 0:00:13]} fxg3 {[%emt 0:00:32]} 28. hxg3 {[%emt 0:00:04]} Nxg3 {[%emt 0:00:15]} 29. Qd3 {[%emt 0:01:01]} Ne4 {[%emt 0:00:44]} 30. Bxe4 {[%emt 0:00:24]} dxe4 {[%emt 0:00:10]} 31. Qxe4 {[%emt 0:00:01]} Qf5 {[%emt 0:00:40]} 32. Qxf5 {[%emt 0:00:33]} Rxf5 {[%emt 0:00:01]} 33. e6 {[%emt 0:00:16]} Rb5 {[%emt 0:00:12]} 34. b3 {[%emt 0:00:12]} a5 {[%emt 0:00:20]} 35. Rd7 {[%emt 0:00:35]} Re8 {[%emt 0:00:05]} 36. Rc1 {[%emt 0:00:13]} Re5 {[%emt 0:00:38]} 37. Rcc7 {[%emt 0:00:24]} R5xe6 {[%emt 0:00:11]} 38. Rg7+ {[%emt 0:00:04]} Kh8 {[%emt 0:00:02]} 39. Rh7+ {[%emt 0:00:10]} Kg8 {[%emt 0:00:00]} 40. Rcg7+ {[%emt 0:00:06]} Kf8 {[%emt 0:00:02]} 41. Rxb7 {[%emt 0:00:01]} Kg8 {[%emt 0:00:41]} 42. Rbg7+ {[%emt 0:00:02]} Kf8 {[%emt 0:00:01]} 43. Kg2 {[%emt 0:00:29]} R8e7 {[%emt 0:01:34]} 44. Rxe7 {[%emt 0:00:06]} Rxe7 {[%emt 0:00:03]} 45. Rxh6 {[%emt 0:00:04]} Re2 {[%emt 0:00:21]} 46. a4 {[%emt 0:00:01]} Kf7 {[%emt 0:00:17]} 47. Rb6 {[%emt 0:00:05]} Rb2 {[%emt 0:00:04]} 48. Kg3 {[%emt 0:00:19]} Kg7 {[%emt 0:00:03]} 49. f3 {[%emt 0:00:35]} Kf7 {[%emt 0:00:20]} 50. Kg4 {[%emt 0:00:09]} Rg2+ {[%emt 0:00:06]} 51. Kf5 {[%emt 0:00:05]} Rg3 {[%emt 0:00:21]} 52. Rb7+ {[%emt 0:00:03]} Ke8 {[%emt 0:00:02]} 53. Ke4 {[%emt 0:00:23]} g4 {[%emt 0:00:38]} 54. fxg4 {[%emt 0:00:35]} Rxg4+ {[%emt 0:00:03]} 55. Kd5 {[%emt 0:00:00]} Kd8 {[%emt 0:00:10]} 56. Kc5 {[%emt 0:00:15]} Kc8 {[%emt 0:00:01]} 57. Rb5 {[%emt 0:00:15]} Rg5+ {[%emt 0:01:15]} 58. Kb6 {[%emt 0:00:01]} 1-0

[Event "Hungarian Rapid-ch 2022"]
[Site "Ajka"]
[Date "2022.07.16"]
[Round "6.20"]
[White "Szalay-Ocsak, Bank"]
[Black "Straubinger, Daniel"]
[Result "0-1"]
[ECO "B19"]
[WhiteElo "2146"]
[BlackElo "2349"]
[Annotator "ChessBase"]
[PlyCount "86"]
[EventDate "2022.07.15"]
[EventType "swiss"]
[EventCountry "HUN"]
[SourceTitle "playchess.com"]
[Source "ChessBase"]
[SourceQuality "1"]
[TimeControl "900+10"]

1. e4 {[%emt 0:00:12]} c6 {[%emt 0:00:31]} 2. d4 {[%emt 0:00:02]} d5 {[%emt 0:00:06]} 3. Nc3 {[%emt 0:00:03]} dxe4 {[%emt 0:00:08]} 4. Nxe4 {[%emt 0:00:02]} Bf5 {[%emt 0:00:02]} 5. Ng3 {[%emt 0:00:02]} Bg6 {[%emt 0:00:20]} 6. h4 {[%emt 0:00:11]} h6 {[%emt 0:00:16]} 7. Nf3 {[%emt 0:00:17]} Nd7 {[%emt 0:00:03]} 8. h5 {[%emt 0:00:02]} Bh7 {[%emt 0:00:13]} 9. Bd3 {[%emt 0:00:02]} Bxd3 {[%emt 0:00:11]} 10. Qxd3 {[%emt 0:00:03]} e6 {[%emt 0:00:05]} 11. Bf4 {[%emt 0:01:03]} Qa5+ {[%emt 0:00:17]} 12. Bd2 {[%emt 0:00:09]} Bb4 {[%emt 0:00:17]} 13. Ne4 {[%emt 0:00:07]} Ngf6 {[%emt 0:04:04]} 14. Nd6+ {[%emt 0:00:46]} Ke7 {[%emt 0:00:02]} 15. Nc4 {[%emt 0:00:34]} Bxd2+ {[%emt 0:00:54]} 16. Nfxd2 {[%emt 0:00:12]} Qc7 {[%emt 0:04:12]} 17. O-O-O {[%emt 0:06:23]} Rhd8 {[%emt 0:00:11]} 18. Nf3 {[%emt 0:02:12]} Kf8 {[%emt 0:00:12]} 19. Nfe5 {[%emt 0:01:04]} Nxe5 {[%emt 0:01:24]} 20. Nxe5 {[%emt 0:00:01]} c5 {[%emt 0:00:13]} 21. Qa3 {[%emt 0:01:50]} b6 {[%emt 0:00:01]} 22. g4 {[%emt 0:00:59]} Kg8 {[%emt 0:02:04]} 23. g5 {[%emt 0:01:00]} cxd4 {[%emt 0:00:26]} 24. Qg3 {[%emt 0:01:38]} Rac8 {[%emt 0:00:25]} 25. Kb1 {[%emt 0:00:13]} Ne4 {[%emt 0:00:03]} 26. Qf4 {[%emt 0:00:09]} Nxg5 {[%emt 0:00:14]} 27. Rd2 {[%emt 0:00:12]} f6 {[%emt 0:00:09]} 28. Nd3 {[%emt 0:00:11]} e5 {[%emt 0:00:27]} 29. Qf5 {[%emt 0:00:07]} e4 {[%emt 0:00:40]} 30. Nf4 {[%emt 0:00:10]} Nf3 {[%emt 0:00:53]} 31. Re2 {[%emt 0:00:12]} d3 {[%emt 0:00:17]} 32. cxd3 {[%emt 0:00:04]} Nd4 {[%emt 0:00:14]} 33. Qxe4 {[%emt 0:00:17]} Nxe2 {[%emt 0:00:09]} 34. Nxe2 {[%emt 0:00:04]} Qc2+ {[%emt 0:00:16]} 35. Ka1 {[%emt 0:00:01]} Qxd3 {[%emt 0:00:06]} 36. Qe6+ {[%emt 0:00:15]} Kh8 {[%emt 0:00:08]} 37. Nc3 {[%emt 0:00:19]} Qd7 {[%emt 0:00:42]} 38. Qe3 {[%emt 0:00:09]} b5 {[%emt 0:00:10]} 39. a3 {[%emt 0:00:10]} a5 {[%emt 0:00:02]} 40. Rg1 {[%emt 0:00:09]} b4 {[%emt 0:00:10]} 41. Ne4 {[%emt 0:00:10]} bxa3 {[%emt 0:00:10]} 42. Qxa3 {[%emt 0:00:12]} Rc4 {[%emt 0:00:07]} 43. Qe3 {[%emt 0:00:11]} Qa4+ {[%emt 0:00:03]} 0-1

[Event "Hungarian Rapid-ch 2022"]
[Site "Ajka"]
[Date "2022.07.16"]
[Round "6.21"]
[White "Emodi, Barnabas"]
[Black "Horvath, Kristof"]
[Result "1/2-1/2"]
[ECO "D02"]
[WhiteElo "2341"]
[BlackElo "2053"]
[Annotator "ChessBase"]
[PlyCount "73"]
[EventDate "2022.07.15"]
[EventType "swiss"]
[EventCountry "HUN"]
[SourceTitle "playchess.com"]
[Source "ChessBase"]
[SourceQuality "1"]
[TimeControl "900+10"]

1. d4 {[%emt 0:00:12]} d5 {[%emt 0:00:13]} 2. Nf3 {[%emt 0:00:05]} Nf6 {[%emt 0:00:02]} 3. c4 {[%emt 0:00:04]} e6 {[%emt 0:00:03]} 4. e3 {[%emt 0:00:37]} c5 {[%emt 0:00:05]} 5. Nc3 {[%emt 0:00:34]} Nc6 {[%emt 0:00:17]} 6. a3 {[%emt 0:00:14]} cxd4 {[%emt 0:01:00]} 7. exd4 {[%emt 0:00:07]} Be7 {[%emt 0:00:02]} 8. c5 {[%emt 0:00:41]} a6 {[%emt 0:00:32]} 9. Bd3 {[%emt 0:01:00]} Qc7 {[%emt 0:00:15]} 10. O-O {[%emt 0:00:17]} O-O {[%emt 0:00:03]} 11. Re1 {[%emt 0:00:11]} h6 {[%emt 0:01:13]} 12. b4 {[%emt 0:00:49]} Re8 {[%emt 0:04:21]} 13. g3 {[%emt 0:01:21]} b5 {[%emt 0:01:19]} 14. Rb1 {[%emt 0:02:01]} Bd7 {[%emt 0:01:58]} 15. a4 {[%emt 0:00:39]} Na7 {[%emt 0:00:14]} 16. Ne5 {[%emt 0:00:42]} Qb7 {[%emt 0:00:52]} 17. Qe2 {[%emt 0:00:40]} Bc6 {[%emt 0:01:46]} 18. Bf4 {[%emt 0:01:55]} Bf8 {[%emt 0:02:56]} 19. h4 {[%emt 0:01:11]} Nd7 {[%emt 0:00:09]} 20. axb5 {[%emt 0:02:24]} Bxb5 {[%emt 0:00:38]} 21. Nxb5 {[%emt 0:00:08]} axb5 {[%emt 0:00:03]} 22. c6 {[%emt 0:00:40]} Nxc6 {[%emt 0:00:12]} 23. Nxc6 {[%emt 0:00:02]} Qxc6 {[%emt 0:00:03]} 24. Bxb5 {[%emt 0:00:02]} Qb7 {[%emt 0:00:03]} 25. Rec1 {[%emt 0:00:08]} Rec8 {[%emt 0:00:06]} 26. Rxc8 {[%emt 0:00:06]} Qxc8 {[%emt 0:00:39]} 27. Rc1 {[%emt 0:00:06]} Qd8 {[%emt 0:00:03]} 28. Bc6 {[%emt 0:00:05]} Ra3 {[%emt 0:00:28]} 29. Qb5 {[%emt 0:00:10]} Nb6 {[%emt 0:00:06]} 30. Qe2 {[%emt 0:01:01]} Bxb4 {[%emt 0:00:18]} 31. Qb2 {[%emt 0:00:08]} Be7 {[%emt 0:00:01]} 32. Bb5 {[%emt 0:00:03]} Nc4 {[%emt 0:00:04]} 33. Bxc4 {[%emt 0:00:03]} dxc4 {[%emt 0:00:01]} 34. Rxc4 {[%emt 0:00:01]} Qa8 {[%emt 0:00:15]} 35. Qb8+ {[%emt 0:00:37]} Qxb8 {[%emt 0:00:05]} 36. Bxb8 {[%emt 0:00:02]} Bf6 {[%emt 0:00:13]} 37. Be5 {[%emt 0:00:07]} 1/2-1/2

[Event "Hungarian Rapid-ch 2022"]
[Site "Ajka"]
[Date "2022.07.16"]
[Round "6.22"]
[White "Papp, Bence"]
[Black "Meszaros, Tamas"]
[Result "1-0"]
[ECO "A45"]
[WhiteElo "2244"]
[BlackElo "2368"]
[Annotator "ChessBase"]
[PlyCount "103"]
[EventDate "2022.07.15"]
[EventType "swiss"]
[EventCountry "HUN"]
[SourceTitle "playchess.com"]
[Source "ChessBase"]
[SourceQuality "1"]
[TimeControl "900+10"]

1. d4 {[%emt 0:00:11]} Nf6 {[%emt 0:00:12]} 2. Bf4 {[%emt 0:00:02]} e6 {[%emt 0:00:01]} 3. Nf3 {[%emt 0:00:02]} b6 {[%emt 0:00:02]} 4. e3 {[%emt 0:00:03]} Bb7 {[%emt 0:00:01]} 5. Bd3 {[%emt 0:00:02]} Be7 {[%emt 0:00:04]} 6. h3 {[%emt 0:00:06]} O-O {[%emt 0:00:09]} 7. O-O {[%emt 0:00:03]} c5 {[%emt 0:00:01]} 8. Nbd2 {[%emt 0:00:10]} cxd4 {[%emt 0:00:08]} 9. exd4 {[%emt 0:00:01]} d6 {[%emt 0:00:01]} 10. Qe2 {[%emt 0:00:07]} Nbd7 {[%emt 0:00:54]} 11. c3 {[%emt 0:00:02]} a6 {[%emt 0:00:05]} 12. Rfe1 {[%emt 0:00:35]} Re8 {[%emt 0:00:02]} 13. Ng5 {[%emt 0:01:08]} Nf8 {[%emt 0:01:21]} 14. Nge4 {[%emt 0:00:13]} Nd5 {[%emt 0:00:21]} 15. Bh2 {[%emt 0:00:06]} f5 {[%emt 0:00:12]} 16. c4 {[%emt 0:01:49]} Nb4 {[%emt 0:07:18]} 17. Nc3 {[%emt 0:00:10]} Bf6 {[%emt 0:00:32]} 18. Nb3 {[%emt 0:00:47]} g6 {[%emt 0:01:15]} 19. Rad1 {[%emt 0:00:28]} Nxd3 {[%emt 0:00:15]} 20. Qxd3 {[%emt 0:00:11]} Rc8 {[%emt 0:00:06]} 21. Nc1 {[%emt 0:01:03]} Qc7 {[%emt 0:00:22]} 22. b3 {[%emt 0:00:04]} b5 {[%emt 0:00:44]} 23. N1e2 {[%emt 0:02:01]} bxc4 {[%emt 0:01:05]} 24. bxc4 {[%emt 0:00:01]} Red8 {[%emt 0:00:20]} 25. Rb1 {[%emt 0:02:14]} Ba8 {[%emt 0:00:18]} 26. Rb4 {[%emt 0:02:14]} Nd7 {[%emt 0:03:27]} 27. Nf4 {[%emt 0:00:19]} Nf8 {[%emt 0:00:10]} 28. Nxe6 {[%emt 0:01:44]} Nxe6 {[%emt 0:00:01]} 29. Rxe6 {[%emt 0:00:01]} Qg7 {[%emt 0:00:08]} 30. Ne2 {[%emt 0:00:48]} Be4 {[%emt 0:00:18]} 31. Qd2 {[%emt 0:00:44]} a5 {[%emt 0:00:09]} 32. Ra4 {[%emt 0:00:01]} Qd7 {[%emt 0:00:07]} 33. Rxf6 {[%emt 0:01:14]} Qxa4 {[%emt 0:00:01]} 34. Rxd6 {[%emt 0:00:02]} Rxd6 {[%emt 0:00:19]} 35. Bxd6 {[%emt 0:00:01]} Qxc4 {[%emt 0:00:05]} 36. Be5 {[%emt 0:00:24]} Qf7 {[%emt 0:00:24]} 37. Qxa5 {[%emt 0:00:43]} Ra8 {[%emt 0:00:01]} 38. Qb6 {[%emt 0:00:01]} h6 {[%emt 0:00:17]} 39. Nf4 {[%emt 0:00:12]} Kh7 {[%emt 0:00:02]} 40. f3 {[%emt 0:00:23]} Bc2 {[%emt 0:00:18]} 41. Nxg6 {[%emt 0:00:15]} Rg8 {[%emt 0:00:09]} 42. Nf4 {[%emt 0:00:08]} Bd1 {[%emt 0:00:09]} 43. Qc6 {[%emt 0:00:26]} Re8 {[%emt 0:00:11]} 44. Nd5 {[%emt 0:00:13]} Re6 {[%emt 0:00:02]} 45. Qa8 {[%emt 0:00:21]} Kg6 {[%emt 0:00:19]} 46. Nf4+ {[%emt 0:00:04]} Kg5 {[%emt 0:00:04]} 47. Nxe6+ {[%emt 0:00:06]} Qxe6 {[%emt 0:00:02]} 48. Qd8+ {[%emt 0:00:03]} Kg6 {[%emt 0:00:03]} 49. Qf8 {[%emt 0:00:21]} Ba4 {[%emt 0:00:06]} 50. Qg7+ {[%emt 0:00:03]} Kh5 {[%emt 0:00:06]} 51. Kh2 {[%emt 0:00:12]} Bd1 {[%emt 0:00:40]} 52. g4+ {[%emt 0:00:07]} 1-0

[Event "Hungarian Rapid-ch 2022"]
[Site "Ajka"]
[Date "2022.07.16"]
[Round "6.23"]
[White "Tubak, Daniel"]
[Black "Tolnai, Tibor"]
[Result "0-1"]
[ECO "B43"]
[WhiteElo "2182"]
[BlackElo "2433"]
[Annotator "ChessBase"]
[PlyCount "90"]
[EventDate "2022.07.15"]
[EventType "swiss"]
[EventCountry "HUN"]
[SourceTitle "playchess.com"]
[Source "ChessBase"]
[SourceQuality "1"]
[TimeControl "900+10"]

1. e4 {[%emt 0:00:14]} c5 {[%emt 0:00:15]} 2. Nf3 {[%emt 0:00:01]} e6 {[%emt 0:00:04]} 3. d4 {[%emt 0:00:02]} cxd4 {[%emt 0:00:02]} 4. Nxd4 {[%emt 0:00:01]} a6 {[%emt 0:00:02]} 5. Nc3 {[%emt 0:00:10]} b5 {[%emt 0:00:05]} 6. Bd3 {[%emt 0:00:03]} Bb7 {[%emt 0:00:07]} 7. O-O {[%emt 0:00:04]} Ne7 {[%emt 0:00:02]} 8. Qe2 {[%emt 0:00:45]} Nbc6 {[%emt 0:00:02]} 9. Nxc6 {[%emt 0:00:20]} Nxc6 {[%emt 0:00:08]} 10. f4 {[%emt 0:00:04]} Be7 {[%emt 0:01:10]} 11. Be3 {[%emt 0:01:14]} Nb4 {[%emt 0:00:43]} 12. Bd4 {[%emt 0:00:14]} O-O {[%emt 0:00:45]} 13. Qg4 {[%emt 0:01:34]} f6 {[%emt 0:00:36]} 14. a3 {[%emt 0:00:29]} Nxd3 {[%emt 0:00:03]} 15. cxd3 {[%emt 0:00:01]} Rc8 {[%emt 0:01:12]} 16. Rac1 {[%emt 0:00:21]} Bc5 {[%emt 0:01:35]} 17. Bxc5 {[%emt 0:00:07]} Rxc5 {[%emt 0:00:02]} 18. Qg3 {[%emt 0:01:40]} f5 {[%emt 0:00:50]} 19. Qe3 {[%emt 0:00:21]} Rc8 {[%emt 0:00:22]} 20. Qd4 {[%emt 0:00:51]} Bc6 {[%emt 0:02:24]} 21. e5 {[%emt 0:01:36]} g5 {[%emt 0:01:11]} 22. Ne2 {[%emt 0:00:15]} Kh8 {[%emt 0:00:20]} 23. Qe3 {[%emt 0:01:03]} gxf4 {[%emt 0:00:06]} 24. Nxf4 {[%emt 0:00:02]} Rg8 {[%emt 0:00:04]} 25. Rf2 {[%emt 0:01:00]} Rg4 {[%emt 0:01:34]} 26. Rd1 {[%emt 0:00:29]} Qg5 {[%emt 0:00:24]} 27. Re1 {[%emt 0:02:05]} Rg8 {[%emt 0:00:57]} 28. Ree2 {[%emt 0:01:43]} h5 {[%emt 0:00:39]} 29. Qd2 {[%emt 0:00:33]} Kh7 {[%emt 0:00:36]} 30. Nh3 {[%emt 0:00:43]} Qh4 {[%emt 0:01:37]} 31. Qe3 {[%emt 0:00:26]} R8g7 {[%emt 0:00:22]} 32. Nf4 {[%emt 0:00:24]} Qg5 {[%emt 0:00:30]} 33. Qd2 {[%emt 0:00:02]} h4 {[%emt 0:00:21]} 34. Nh3 {[%emt 0:00:37]} Qd8 {[%emt 0:00:05]} 35. Rf4 {[%emt 0:00:16]} Rxg2+ {[%emt 0:00:26]} 36. Rxg2 {[%emt 0:00:06]} Rxg2+ {[%emt 0:00:07]} 37. Qxg2 {[%emt 0:00:01]} Bxg2 {[%emt 0:00:01]} 38. Kxg2 {[%emt 0:00:01]} Qc7 {[%emt 0:00:04]} 39. Rxh4+ {[%emt 0:00:24]} Kg7 {[%emt 0:00:03]} 40. Nf4 {[%emt 0:00:21]} Qxe5 {[%emt 0:00:07]} 41. Kf3 {[%emt 0:00:02]} Qxb2 {[%emt 0:00:04]} 42. Rh3 {[%emt 0:00:05]} Qxa3 {[%emt 0:00:16]} 43. Rg3+ {[%emt 0:00:07]} Kf7 {[%emt 0:00:03]} 44. Ke3 {[%emt 0:00:08]} Qc1+ {[%emt 0:00:07]} 45. Kf3 {[%emt 0:00:02]} b4 {[%emt 0:00:05]} 0-1

[Event "Hungarian Rapid-ch 2022"]
[Site "Ajka"]
[Date "2022.07.16"]
[Round "6.24"]
[White "Kovacs, Klara"]
[Black "Molnar, Aurel Jr."]
[Result "1-0"]
[ECO "B81"]
[WhiteElo "2098"]
[BlackElo "2014"]
[Annotator "ChessBase"]
[PlyCount "53"]
[EventDate "2022.07.15"]
[EventType "swiss"]
[EventCountry "HUN"]
[SourceTitle "playchess.com"]
[Source "ChessBase"]
[SourceQuality "1"]
[TimeControl "900+10"]

1. e4 {[%emt 0:00:12]} c5 {[%emt 0:00:11]} 2. Nf3 {[%emt 0:00:02]} e6 {[%emt 0:00:01]} 3. d4 {[%emt 0:00:01]} cxd4 {[%emt 0:00:01]} 4. Nxd4 {[%emt 0:00:02]} Nf6 {[%emt 0:00:02]} 5. Nc3 {[%emt 0:00:01]} d6 {[%emt 0:00:00]} 6. g4 {[%emt 0:00:06]} h6 {[%emt 0:00:05]} 7. h4 {[%emt 0:00:03]} Nc6 {[%emt 0:00:05]} 8. Be3 {[%emt 0:00:03]} d5 {[%emt 0:00:50]} 9. Bb5 {[%emt 0:00:50]} Bd7 {[%emt 0:01:16]} 10. exd5 {[%emt 0:00:07]} exd5 {[%emt 0:00:29]} 11. Rg1 {[%emt 0:00:05]} Bb4 {[%emt 0:01:09]} 12. Nf5 {[%emt 0:01:34]} Bxf5 {[%emt 0:01:35]} 13. gxf5 {[%emt 0:00:03]} Qa5 {[%emt 0:02:36]} 14. Qd3 {[%emt 0:04:21]} Ne4 {[%emt 0:02:54]} 15. Kf1 {[%emt 0:01:42]} Bxc3 {[%emt 0:02:07]} 16. Qxd5 {[%emt 0:02:44]} O-O {[%emt 0:00:40]} 17. Bxc6 {[%emt 0:03:59]} bxc6 {[%emt 0:03:16]} 18. Qxe4 {[%emt 0:00:10]} Rfe8 {[%emt 0:00:21]} 19. Qxc6 {[%emt 0:00:29]} Rac8 {[%emt 0:00:25]} 20. Qf3 {[%emt 0:01:06]} Bxb2 {[%emt 0:00:05]} 21. Rb1 {[%emt 0:00:02]} Rxc2 {[%emt 0:00:09]} 22. Rg4 {[%emt 0:00:39]} Qxa2 {[%emt 0:00:15]} 23. Rxb2 {[%emt 0:00:21]} Qxb2 {[%emt 0:00:08]} 24. Bd4 {[%emt 0:00:04]} Qb1+ {[%emt 0:00:17]} 25. Kg2 {[%emt 0:00:01]} g6 {[%emt 0:00:08]} 26. fxg6 {[%emt 0:00:04]} f5 {[%emt 0:00:07]} 27. Qd5+ {[%emt 0:00:07]} 1-0

[Event "Hungarian Rapid-ch 2022"]
[Site "Ajka"]
[Date "2022.07.16"]
[Round "6.25"]
[White "Kiss, Gergely"]
[Black "Udvardi, Zalan"]
[Result "1/2-1/2"]
[ECO "A01"]
[WhiteElo "2166"]
[BlackElo "2310"]
[Annotator "ChessBase"]
[PlyCount "117"]
[EventDate "2022.07.15"]
[EventType "swiss"]
[EventCountry "HUN"]
[SourceTitle "playchess.com"]
[Source "ChessBase"]
[SourceQuality "1"]
[TimeControl "900+10"]

1. b3 {[%emt 0:00:19]} e5 {[%emt 0:00:18]} 2. Bb2 {[%emt 0:00:01]} Nc6 {[%emt 0:00:00]} 3. e3 {[%emt 0:00:03]} g6 {[%emt 0:00:01]} 4. Nf3 {[%emt 0:00:26]} Bg7 {[%emt 0:00:01]} 5. d4 {[%emt 0:00:04]} e4 {[%emt 0:00:20]} 6. Nfd2 {[%emt 0:00:10]} f5 {[%emt 0:00:01]} 7. c4 {[%emt 0:00:20]} Nge7 {[%emt 0:00:12]} 8. Nc3 {[%emt 0:00:31]} d6 {[%emt 0:00:29]} 9. h4 {[%emt 0:00:33]} h6 {[%emt 0:00:05]} 10. a3 {[%emt 0:00:21]} O-O {[%emt 0:00:03]} 11. g3 {[%emt 0:00:35]} Nb8 {[%emt 0:01:27]} 12. Rc1 {[%emt 0:00:48]} Nd7 {[%emt 0:00:07]} 13. b4 {[%emt 0:00:07]} Nf6 {[%emt 0:00:03]} 14. Ne2 {[%emt 0:00:32]} Be6 {[%emt 0:00:17]} 15. Nf4 Bf7 16. Be2 {[%emt 0:01:03]} d5 {[%emt 0:01:58]} 17. a4 {[%emt 0:00:31]} c6 {[%emt 0:00:20]} 18. Nb3 {[%emt 0:00:48]} b6 {[%emt 0:01:58]} 19. c5 {[%emt 0:00:34]} Nd7 {[%emt 0:01:00]} 20. Ba3 {[%emt 0:00:49]} bxc5 {[%emt 0:01:51]} 21. Nxc5 {[%emt 0:00:25]} Nxc5 {[%emt 0:00:04]} 22. Rxc5 {[%emt 0:00:09]} Rb8 {[%emt 0:01:22]} 23. Qd2 {[%emt 0:00:18]} g5 {[%emt 0:01:25]} 24. hxg5 {[%emt 0:00:26]} hxg5 {[%emt 0:00:01]} 25. Nh5 {[%emt 0:00:06]} Bxh5 {[%emt 0:00:03]} 26. Rxh5 {[%emt 0:00:13]} f4 {[%emt 0:00:44]} 27. Bg4 {[%emt 0:00:14]} Qd6 {[%emt 0:00:20]} 28. gxf4 {[%emt 0:02:43]} gxf4 {[%emt 0:00:08]} 29. b5 {[%emt 0:00:25]} Qg6 {[%emt 0:00:15]} 30. Be2 {[%emt 0:01:44]} f3 {[%emt 0:00:03]} 31. Rh1 {[%emt 0:00:23]} Qg2 {[%emt 0:00:59]} 32. Rf1 {[%emt 0:00:01]} fxe2 {[%emt 0:00:02]} 33. Qxe2 {[%emt 0:00:01]} cxb5 {[%emt 0:02:06]} 34. axb5 {[%emt 0:00:10]} Rfc8 {[%emt 0:00:22]} 35. Qa2 {[%emt 0:00:46]} Rd8 {[%emt 0:01:21]} 36. Qe2 {[%emt 0:01:30]} Rb7 {[%emt 0:00:36]} 37. Qh5 {[%emt 0:00:29]} a6 38. Rh1 {[%emt 0:00:12]} Qg6 {[%emt 0:00:28]} 39. Qe2 {[%emt 0:00:24]} Rdb8 {[%emt 0:00:19]} 40. bxa6 {[%emt 0:00:15]} Rb1+ {[%emt 0:00:03]} 41. Bc1 {[%emt 0:00:02]} Qb6 {[%emt 0:00:22]} 42. Qh5 {[%emt 0:00:27]} Qxc5 {[%emt 0:00:16]} 43. dxc5 {[%emt 0:00:22]} Rxc1+ {[%emt 0:00:06]} 44. Kd2 {[%emt 0:00:14]} Rxc5 {[%emt 0:00:14]} 45. Rd1 {[%emt 0:00:42]} Ra5 {[%emt 0:00:16]} 46. Ke1 {[%emt 0:00:38]} Rxa6 {[%emt 0:00:05]} 47. Rc1 {[%emt 0:00:08]} Rh6 {[%emt 0:00:08]} 48. Qg4 {[%emt 0:00:21]} Rg6 {[%emt 0:00:19]} 49. Qd7 {[%emt 0:00:08]} Rg1+ {[%emt 0:00:10]} 50. Kd2 {[%emt 0:00:02]} Rxc1 {[%emt 0:00:06]} 51. Kxc1 {[%emt 0:00:05]} Kf7 {[%emt 0:00:02]} 52. Qd6 {[%emt 0:00:11]} Rc8+ {[%emt 0:00:01]} 53. Kd1 {[%emt 0:00:02]} Rc6 {[%emt 0:00:01]} 54. Qg3 {[%emt 0:00:04]} Bf6 {[%emt 0:00:02]} 55. Qh3 {[%emt 0:00:01]} Ke8 {[%emt 0:00:20]} 56. Qh7 {[%emt 0:00:04]} Kd8 {[%emt 0:00:02]} 57. Qf7 {[%emt 0:00:05]} Kc7 {[%emt 0:00:08]} 58. Ke2 {[%emt 0:00:02]} Kd6 {[%emt 0:00:02]} 59. Qxf6+ {[%emt 0:00:06]} 1/2-1/2

[Event "Hungarian Rapid-ch 2022"]
[Site "Ajka"]
[Date "2022.07.16"]
[Round "6.26"]
[White "Nemeth, Zoltan"]
[Black "Juhasz, Zoltan"]
[Result "1-0"]
[ECO "A51"]
[WhiteElo "2242"]
[BlackElo "1985"]
[Annotator "ChessBase"]
[PlyCount "63"]
[EventDate "2022.07.15"]
[EventType "swiss"]
[EventCountry "HUN"]
[SourceTitle "playchess.com"]
[Source "ChessBase"]
[SourceQuality "1"]
[TimeControl "900+10"]

1. d4 {[%emt 0:00:13]} Nf6 {[%emt 0:02:43]} 2. c4 {[%emt 0:02:42]} e5 {[%emt 0:00:04]} 3. e3 {[%emt 0:00:22]} exd4 {[%emt 0:00:10]} 4. exd4 {[%emt 0:00:01]} d5 {[%emt 0:00:06]} 5. Nf3 {[%emt 0:00:06]} Nc6 {[%emt 0:01:31]} 6. Nc3 {[%emt 0:00:08]} Bg4 {[%emt 0:01:06]} 7. c5 {[%emt 0:01:10]} Be7 {[%emt 0:01:35]} 8. a3 {[%emt 0:00:04]} a5 {[%emt 0:00:28]} 9. Be3 {[%emt 0:01:04]} O-O {[%emt 0:00:12]} 10. Bd3 {[%emt 0:00:28]} Qd7 {[%emt 0:00:26]} 11. h3 {[%emt 0:00:39]} Bf5 {[%emt 0:00:10]} 12. Bb5 {[%emt 0:00:19]} h6 {[%emt 0:00:43]} 13. Qa4 {[%emt 0:02:52]} Qe6 {[%emt 0:00:46]} 14. O-O-O {[%emt 0:00:12]} Ne4 {[%emt 0:00:38]} 15. Qb3 {[%emt 0:00:54]} Nxc3 {[%emt 0:00:39]} 16. Qxc3 {[%emt 0:00:02]} Nd8 {[%emt 0:01:27]} 17. Rhe1 {[%emt 0:00:08]} c6 {[%emt 0:00:31]} 18. Bf1 {[%emt 0:01:24]} Be4 {[%emt 0:02:37]} 19. Nd2 {[%emt 0:00:19]} Bh7 {[%emt 0:00:37]} 20. Bf4 {[%emt 0:00:12]} Qd7 {[%emt 0:00:09]} 21. Qg3 {[%emt 0:03:17]} Bf6 {[%emt 0:01:09]} 22. Nf3 {[%emt 0:00:13]} Kh8 {[%emt 0:00:17]} 23. Bd6 {[%emt 0:00:24]} Rg8 {[%emt 0:00:04]} 24. Ne5 {[%emt 0:00:03]} Qf5 {[%emt 0:00:09]} 25. Bd3 {[%emt 0:00:20]} Qg5+ {[%emt 0:00:09]} 26. Qxg5 {[%emt 0:00:06]} Bxg5+ {[%emt 0:00:00]} 27. Kc2 {[%emt 0:00:03]} Bxd3+ {[%emt 0:00:03]} 28. Rxd3 {[%emt 0:00:27]} Kh7 {[%emt 0:00:25]} 29. g3 {[%emt 0:00:08]} h5 {[%emt 0:00:16]} 30. Rf3 {[%emt 0:00:10]} Bf6 {[%emt 0:00:06]} 31. Kd3 {[%emt 0:00:11]} g6 {[%emt 0:00:23]} 32. Rxf6 {[%emt 0:00:10]} 1-0